[Event "Senior Men Russian Championship 2022_1L"]
[Site "Olginka, Russia"]
[Date "2022.10.01"]
[Round "8.4"]
[White "Chudinovskikh, Alexander M"]
[Black "Pak, Kil En"]
[Result "1-0"]
[TimeControl "90min/40moves+30min/end+30sec increment per move starting from move 1"]
[WhiteTitle "IM"]
[WhiteFideId "4106083"]
[BlackFideId "4131959"]
[WhiteElo "2074"]
[BlackElo "2207"]

1. e4 {[%clk 01:30:57]} {[%emt 00:00:02]} c5 {[%clk 01:30:52]} {[%emt
00:00:08]} 2. Nf3 {[%clk 01:31:07]} {[%emt 00:00:20]} d6 {[%clk 01:31:12]}
{[%emt 00:00:09]} 3. Bb5+ {[%clk 01:31:30]} {[%emt 00:00:09]} Nd7 {[%clk
01:31:10]} {[%emt 00:00:31]} 4. d4 {[%clk 01:31:50]} {[%emt 00:00:09]} cxd4
{[%clk 01:30:55]} {[%emt 00:00:46]} 5. Nxd4 {[%clk 01:32:08]} {[%emt 00:00:12]}
Ngf6 {[%clk 01:31:16]} {[%emt 00:00:09]} 6. O-O {[%clk 01:32:32]} {[%emt
00:00:06]} a6 {[%clk 01:29:16]} {[%emt 00:02:31]} 7. Bd3 {[%clk 01:30:45]}
{[%emt 00:02:17]} e6 {[%clk 01:28:52]} {[%emt 00:00:54]} 8. c4 {[%clk
01:30:16]} {[%emt 00:00:58]} Be7 {[%clk 01:28:32]} {[%emt 00:00:50]} 9. Nc3
{[%clk 01:30:22]} {[%emt 00:00:24]} O-O {[%clk 01:28:51]} {[%emt 00:00:11]} 10.
Qe2 {[%clk 01:29:13]} {[%emt 00:01:40]} Qc7 {[%clk 01:28:46]} {[%emt 00:00:35]}
11. f4 {[%clk 01:28:15]} {[%emt 00:01:28]} b6 {[%clk 01:21:46]} {[%emt
00:07:30]} 12. Bd2 {[%clk 01:23:04]} {[%emt 00:05:40]} Bb7 {[%clk 01:20:32]}
{[%emt 00:01:45]} 13. Rae1 {[%clk 01:23:20]} {[%emt 00:00:14]} Rac8 {[%clk
01:19:40]} {[%emt 00:01:22]} 14. Kh1 {[%clk 01:23:07]} {[%emt 00:00:44]} Qc5
{[%clk 01:10:48]} {[%emt 00:09:22]} 15. Nf3 {[%clk 01:16:42]} {[%emt 00:06:54]}
Qh5 {[%clk 01:10:18]} {[%emt 00:01:00]} 16. Qf2 {[%clk 01:15:17]} {[%emt
00:01:54]} Rfe8 {[%clk 00:51:43]} {[%emt 00:19:06]} 17. h3 {[%clk 01:14:08]}
{[%emt 00:01:40]} d5 {[%clk 00:42:40]} {[%emt 00:09:33]} 18. cxd5 {[%clk
01:08:35]} {[%emt 00:06:03]} exd5 {[%clk 00:42:58]} {[%emt 00:00:12]} 19. exd5
{[%clk 00:52:46]} {[%emt 00:16:18]} Nc5 {[%clk 00:35:30]} {[%emt 00:07:58]} 20.
Bb1 {[%clk 00:52:40]} {[%emt 00:00:36]} Nxd5 {[%clk 00:35:31]} {[%emt
00:00:29]} 21. Re5 {[%clk 00:52:51]} {[%emt 00:00:20]} Qh6 {[%clk 00:32:10]}
{[%emt 00:03:51]} 22. Nxd5 {[%clk 00:52:43]} {[%emt 00:00:38]} 1-0

[Event "Senior Men Russian Championship 2022_1L"]
[Site "Olginka, Russia"]
[Date "2022.10.01"]
[Round "8.5"]
[White "Dmitriev, Igor"]
[Black "Kolomensky, Vladimir"]
[Result "1-0"]
[TimeControl "90min/40moves+30min/end+30sec increment per move starting from move 1"]
[WhiteTitle "IM"]
[BlackTitle "FM"]
[WhiteFideId "4114833"]
[BlackFideId "4123565"]
[WhiteElo "2174"]
[BlackElo "2055"]

1. c4 {[%clk 01:26:44]} {[%emt 00:04:15]} Nf6 {[%clk 01:30:49]} {[%emt
00:00:11]} 2. Nc3 {[%clk 01:26:49]} {[%emt 00:00:25]} e6 {[%clk 01:31:03]}
{[%emt 00:00:17]} 3. e4 {[%clk 01:26:56]} {[%emt 00:00:22]} d5 {[%clk
01:31:21]} {[%emt 00:00:12]} 4. e5 {[%clk 01:26:57]} {[%emt 00:00:29]} d4
{[%clk 01:31:44]} {[%emt 00:00:07]} 5. exf6 {[%clk 01:27:10]} {[%emt 00:00:17]}
dxc3 {[%clk 01:32:07]} {[%emt 00:00:07]} 6. bxc3 {[%clk 01:26:56]} {[%emt
00:00:45]} Qxf6 {[%clk 01:32:31]} {[%emt 00:00:07]} 7. d4 {[%clk 01:26:28]}
{[%emt 00:00:58]} c5 {[%clk 01:31:15]} {[%emt 00:01:45]} 8. Nf3 {[%clk
01:26:46]} {[%emt 00:00:12]} cxd4 {[%clk 01:31:15]} {[%emt 00:00:30]} 9. cxd4
{[%clk 01:27:01]} {[%emt 00:00:14]} Bb4+ {[%clk 01:31:35]} {[%emt 00:00:11]} 10.
Bd2 {[%clk 01:27:24]} {[%emt 00:00:07]} Bxd2+ {[%clk 01:31:45]} {[%emt
00:00:21]} 11. Qxd2 {[%clk 01:27:49]} {[%emt 00:00:05]} Nc6 {[%clk 01:31:58]}
{[%emt 00:00:17]} 12. Be2 {[%clk 01:21:15]} {[%emt 00:07:03]} O-O {[%clk
01:31:38]} {[%emt 00:00:51]} 13. Qe3 {[%clk 01:16:12]} {[%emt 00:05:32]} Rd8
{[%clk 01:30:01]} {[%emt 00:02:06]} 14. Rd1 {[%clk 01:16:26]} {[%emt 00:00:16]}
b6 {[%clk 01:27:16]} {[%emt 00:03:17]} 15. O-O {[%clk 01:16:24]} {[%emt
00:00:30]} Bb7 {[%clk 01:22:08]} {[%emt 00:05:39]} 16. Rd2 {[%clk 01:12:03]}
{[%emt 00:04:51]} Rd7 {[%clk 01:12:04]} {[%emt 00:10:34]} 17. Rfd1 {[%clk
01:10:48]} {[%emt 00:01:45]} Rad8 {[%clk 01:11:15]} {[%emt 00:01:19]} 18. Bd3
{[%clk 01:00:42]} {[%emt 00:10:36]} h6 {[%clk 00:32:27]} {[%emt 00:39:18]} 19.
h3 {[%clk 00:58:19]} {[%emt 00:02:53]} Kf8 {[%clk 00:29:30]} {[%emt 00:03:28]}
20. Be4 {[%clk 00:56:34]} {[%emt 00:02:14]} Na5 {[%clk 00:23:28]} {[%emt
00:06:33]} 21. Ne5 {[%clk 00:54:08]} {[%emt 00:02:56]} Rc7 {[%clk 00:23:57]}
{[%emt 00:00:02]} 22. Bxb7 {[%clk 00:53:51]} {[%emt 00:00:46]} Rxb7 {[%clk
00:24:23]} {[%emt 00:00:03]} 23. Qe4 {[%clk 00:36:31]} {[%emt 00:17:49]} Rc7
{[%clk 00:22:49]} {[%emt 00:02:06]} 24. d5 {[%clk 00:34:20]} {[%emt 00:02:41]}
exd5 {[%clk 00:18:18]} {[%emt 00:05:01]} 25. cxd5 {[%clk 00:33:14]} {[%emt
00:01:35]} Re7 {[%clk 00:13:11]} {[%emt 00:05:37]} 26. f4 {[%clk 00:33:31]}
{[%emt 00:00:13]} g6 {[%clk 00:12:53]} {[%emt 00:00:49]} 27. d6 {[%clk
00:31:57]} {[%emt 00:02:03]} Re6 {[%clk 00:13:14]} {[%emt 00:00:10]} 28. Qb4
{[%clk 00:23:36]} {[%emt 00:08:50]} h5 {[%clk 00:11:46]} {[%emt 00:01:58]} 29.
Qc3 {[%clk 00:17:56]} {[%emt 00:06:10]} Nb7 {[%clk 00:03:45]} {[%emt 00:08:33]}
30. Qc7 {[%clk 00:15:45]} {[%emt 00:02:40]} Qxf4 {[%clk 00:01:14]} {[%emt
00:03:01]} 31. Rf2 {[%clk 00:16:01]} {[%emt 00:00:12]} 1-0

[Event "Senior Men Russian Championship 2022_1L"]
[Site "Olginka, Russia"]
[Date "2022.10.01"]
[Round "8.6"]
[White "Kaitukov, Arsen"]
[Black "Piankov, Evgenij"]
[Result "0-1"]
[TimeControl "90min/40moves+30min/end+30sec increment per move starting from move 1"]
[BlackTitle "IM"]
[WhiteFideId "34263756"]
[BlackFideId "14100525"]
[WhiteElo "1809"]
[BlackElo "2165"]

1. e4 {[%clk 01:17:08]} {[%emt 00:12:18]} c6 {[%clk 01:30:56]} {[%emt
00:01:37]} 2. d4 {[%clk 01:17:34]} {[%emt 00:00:05]} d5 {[%clk 01:31:14]}
{[%emt 00:00:11]} 3. Nc3 {[%clk 01:17:07]} {[%emt 00:00:57]} g6 {[%clk
01:31:29]} {[%emt 00:00:15]} 4. Be3 {[%clk 01:14:51]} {[%emt 00:02:48]} Bg7
{[%clk 01:31:19]} {[%emt 00:00:39]} 5. exd5 {[%clk 01:12:27]} {[%emt 00:02:55]}
cxd5 {[%clk 01:31:34]} {[%emt 00:00:13]} 6. Bb5+ {[%clk 01:10:37]} {[%emt
00:02:20]} Nc6 {[%clk 01:31:27]} {[%emt 00:00:37]} 7. Nge2 {[%clk 01:10:26]}
{[%emt 00:00:41]} Nf6 {[%clk 01:30:55]} {[%emt 00:01:01]} 8. f3 {[%clk
01:10:31]} {[%emt 00:00:26]} O-O {[%clk 01:30:57]} {[%emt 00:00:27]} 9. Qd2
{[%clk 01:09:59]} {[%emt 00:01:03]} a6 {[%clk 01:30:05]} {[%emt 00:01:22]} 10.
Ba4 {[%clk 01:09:42]} {[%emt 00:00:47]} Na5 {[%clk 01:27:53]} {[%emt 00:02:42]}
11. Bh6 {[%clk 01:06:23]} {[%emt 00:03:49]} Nc4 {[%clk 01:25:46]} {[%emt
00:02:37]} 12. Qc1 {[%clk 01:04:51]} {[%emt 00:02:02]} Bxh6 {[%clk 01:16:29]}
{[%emt 00:09:47]} 13. Qxh6 {[%clk 01:05:17]} {[%emt 00:00:04]} Nxb2 {[%clk
01:16:46]} {[%emt 00:00:14]} 14. Bb3 {[%clk 01:05:43]} {[%emt 00:00:05]} b5
{[%clk 01:15:39]} {[%emt 00:01:35]} 15. h4 {[%clk 01:02:40]} {[%emt 00:03:34]}
Nc4 {[%clk 00:54:30]} {[%emt 00:21:39]} 16. h5 {[%clk 00:57:33]} {[%emt
00:05:36]} Qd6 {[%clk 00:53:44]} {[%emt 00:01:16]} 17. hxg6 {[%clk 00:50:10]}
{[%emt 00:07:53]} fxg6 {[%clk 00:53:50]} {[%emt 00:00:23]} 18. Nf4 {[%clk
00:43:47]} {[%emt 00:06:54]} Rf7 {[%clk 00:53:32]} {[%emt 00:00:48]} 19. Nce2
{[%clk 00:43:42]} {[%emt 00:00:36]} Rg7 {[%clk 00:53:41]} {[%emt 00:00:21]} 20.
a4 {[%clk 00:42:39]} {[%emt 00:01:34]} Bb7 {[%clk 00:52:57]} {[%emt 00:01:13]}
21. axb5 {[%clk 00:39:47]} {[%emt 00:03:22]} axb5 {[%clk 00:53:25]} {[%emt
00:00:02]} 22. Kf2 {[%clk 00:38:42]} {[%emt 00:01:34]} Rxa1 {[%clk 00:48:53]}
{[%emt 00:05:02]} 23. Rxa1 {[%clk 00:39:09]} {[%emt 00:00:03]} g5 {[%clk
00:48:47]} {[%emt 00:00:36]} 24. Rh1 {[%clk 00:37:10]} {[%emt 00:02:29]} gxf4
{[%clk 00:48:26]} {[%emt 00:00:51]} 25. Nxf4 {[%clk 00:37:32]} {[%emt
00:00:08]} e5 {[%clk 00:43:44]} {[%emt 00:05:11]} 26. dxe5 {[%clk 00:34:48]}
{[%emt 00:03:15]} Nxe5 {[%clk 00:41:51]} {[%emt 00:02:23]} 27. Kf1 {[%clk
00:33:29]} {[%emt 00:01:50]} Nc4 {[%clk 00:35:28]} {[%emt 00:06:52]} 28. Rh3
{[%clk 00:32:13]} {[%emt 00:01:46]} Ne3+ {[%clk 00:33:12]} {[%emt 00:02:46]} 29.
Kg1 {[%clk 00:32:11]} {[%emt 00:00:32]} Nf5 {[%clk 00:33:25]} {[%emt 00:00:16]}
30. Nxd5 {[%clk 00:32:06]} {[%emt 00:00:36]} Bxd5 {[%clk 00:32:38]} {[%emt
00:01:17]} 31. Bxd5+ {[%clk 00:30:29]} {[%emt 00:02:07]} Nxd5 {[%clk 00:32:49]}
{[%emt 00:00:19]} 32. Qc1 {[%emt 00:00:43]} Nf4 {[%emt 00:00:33]} 33. Kf2
{[%emt 00:00:34]} 0-1

[Event "Senior Men Russian Championship 2022_1L"]
[Site "Olginka, Russia"]
[Date "2022.10.01"]
[Round "8.8"]
[White "Bebchuk, Boris"]
[Black "Sluzhilov, Aleksandr"]
[Result "1-0"]
[TimeControl "90min/40moves+30min/end+30sec increment per move starting from move 1"]
[BlackFideId "24152501"]
[WhiteElo "2089"]
[BlackElo "1795"]

1. d4 {[%clk 01:30:57]} {[%emt 00:00:01]} Nf6 {[%clk 01:30:37]} {[%emt
00:00:24]} 2. c4 {[%clk 01:31:24]} {[%emt 00:00:03]} e6 {[%clk 01:31:00]}
{[%emt 00:00:08]} 3. Nc3 {[%clk 01:31:49]} {[%emt 00:00:05]} d5 {[%clk
01:31:23]} {[%emt 00:00:06]} 4. cxd5 {[%clk 01:31:56]} {[%emt 00:00:22]} exd5
{[%clk 01:31:41]} {[%emt 00:00:13]} 5. Bg5 {[%clk 01:32:20]} {[%emt 00:00:06]}
c6 {[%clk 01:31:18]} {[%emt 00:00:53]} 6. e3 {[%clk 01:32:42]} {[%emt
00:00:07]} h6 {[%clk 01:31:24]} {[%emt 00:00:25]} 7. Bh4 {[%clk 01:33:06]}
{[%emt 00:00:05]} Be7 {[%clk 01:31:00]} {[%emt 00:00:55]} 8. Bd3 {[%clk
01:33:24]} {[%emt 00:00:11]} Nbd7 {[%clk 01:26:32]} {[%emt 00:04:59]} 9. Qc2
{[%clk 01:33:15]} {[%emt 00:00:38]} O-O {[%clk 01:26:01]} {[%emt 00:01:01]} 10.
O-O-O {[%clk 01:33:34]} {[%emt 00:00:10]} Re8 {[%clk 01:24:48]} {[%emt
00:01:43]} 11. f3 {[%clk 01:32:55]} {[%emt 00:01:08]} Bb4 {[%clk 01:16:12]}
{[%emt 00:09:07]} 12. e4 {[%clk 01:31:52]} {[%emt 00:01:33]} Bxc3 {[%clk
01:13:04]} {[%emt 00:03:38]} 13. bxc3 {[%clk 01:31:48]} {[%emt 00:00:34]} dxe4
{[%clk 01:12:24]} {[%emt 00:01:10]} 14. fxe4 {[%clk 01:32:04]} {[%emt
00:00:13]} Qa5 {[%clk 01:12:43]} {[%emt 00:00:12]} 15. Ne2 {[%clk 01:31:15]}
{[%emt 00:01:16]} b5 {[%clk 01:08:50]} {[%emt 00:04:27]} 16. Kb1 {[%clk
01:30:14]} {[%emt 00:01:28]} c5 {[%clk 01:00:09]} {[%emt 00:09:14]} 17. e5
{[%clk 01:27:30]} {[%emt 00:03:15]} Nd5 {[%clk 00:57:56]} {[%emt 00:02:43]} 18.
Qd2 {[%clk 01:25:32]} {[%emt 00:02:27]} cxd4 {[%clk 00:56:07]} {[%emt
00:02:20]} 19. cxd4 {[%clk 01:25:39]} {[%emt 00:00:23]} Qxd2 {[%clk 00:54:59]}
{[%emt 00:01:38]} 20. Rxd2 {[%clk 01:26:07]} {[%emt 00:00:02]} a6 {[%clk
00:54:17]} {[%emt 00:01:13]} 21. g4 {[%clk 01:25:23]} {[%emt 00:01:14]} N7b6
{[%clk 00:54:08]} {[%emt 00:00:39]} 22. g5 {[%clk 01:24:24]} {[%emt 00:01:29]}
hxg5 {[%clk 00:53:16]} {[%emt 00:01:22]} 23. Bxg5 {[%clk 01:24:52]} {[%emt
00:00:02]} Be6 {[%clk 00:50:51]} {[%emt 00:02:55]} 24. Rg1 {[%clk 01:23:07]}
{[%emt 00:02:14]} Kf8 {[%clk 00:50:11]} {[%emt 00:01:11]} 25. h4 {[%clk
01:23:16]} {[%emt 00:00:20]} Rac8 {[%clk 00:48:37]} {[%emt 00:02:05]} 26. Ng3
{[%clk 01:20:51]} {[%emt 00:02:55]} Nc4 {[%clk 00:46:59]} {[%emt 00:02:08]} 27.
Rf2 {[%clk 01:19:09]} {[%emt 00:02:10]} Na3+ {[%clk 00:42:23]} {[%emt
00:05:07]} 28. Ka1 {[%clk 01:19:27]} {[%emt 00:00:09]} Rc3 {[%clk 00:42:36]}
{[%emt 00:00:20]} 29. Bf5 {[%clk 01:18:46]} {[%emt 00:01:08]} Bxf5 {[%clk
00:40:57]} {[%emt 00:02:12]} 30. Nxf5 {[%clk 01:18:56]} {[%emt 00:00:20]} Re6
{[%clk 00:22:14]} {[%emt 00:19:15]} 31. Bd2 {[%clk 01:17:23]} {[%emt 00:02:03]}
Rc2 {[%clk 00:20:33]} {[%emt 00:02:11]} 32. Nxg7 {[%clk 01:17:27]} {[%emt
00:00:25]} Rec6 {[%clk 00:19:14]} {[%emt 00:01:49]} 33. Nf5 {[%clk 01:15:55]}
{[%emt 00:02:02]} a5 {[%clk 00:09:02]} {[%emt 00:10:41]} 34. Nd6 {[%clk
01:14:06]} {[%emt 00:02:20]} Rc7 {[%clk 00:07:26]} {[%emt 00:02:07]} 35. Rgf1
{[%clk 01:11:56]} {[%emt 00:02:38]} Kg8 {[%clk 00:05:31]} {[%emt 00:02:27]} 36.
Ne4 {[%clk 01:11:14]} {[%emt 00:01:11]} Nc4 {[%clk 00:04:18]} {[%emt 00:01:44]}
37. Bg5 {[%clk 01:10:23]} {[%emt 00:01:20]} Rxf2 {[%clk 00:04:39]} {[%emt
00:00:10]} 38. Rxf2 {[%clk 01:10:26]} {[%emt 00:00:27]} Nce3 {[%clk 00:03:37]}
{[%emt 00:01:31]} 39. Nc5 {[%clk 01:10:21]} {[%emt 00:00:34]} Kh7 {[%clk
00:03:23]} {[%emt 00:00:46]} 40. Bd8 {[%clk 01:39:56]} {[%emt 00:00:54]} Ra7
{[%clk 00:33:31]} {[%emt 00:00:22]} 41. Rf3 {[%clk 01:38:22]} {[%emt 00:02:04]}
Kg6 {[%clk 00:33:44]} {[%emt 00:00:17]} 42. Rg3+ {[%clk 01:37:08]} {[%emt
00:01:43]} Kh7 {[%clk 00:32:38]} {[%emt 00:01:37]} 43. Ne4 {[%clk 01:28:20]}
{[%emt 00:09:19]} Nf5 {[%clk 00:32:13]} {[%emt 00:00:54]} 44. Rd3 {[%clk
01:25:20]} {[%emt 00:03:29]} Ra8 {[%clk 00:31:16]} {[%emt 00:01:28]} 45. Bg5
{[%clk 01:25:36]} {[%emt 00:00:14]} Kg6 {[%clk 00:30:28]} {[%emt 00:01:19]} 46.
Kb2 {[%clk 01:15:18]} {[%emt 00:10:49]} Rc8 {[%clk 00:30:24]} {[%emt 00:00:34]}
47. Nc3 {[%clk 01:15:26]} {[%emt 00:00:21]} Nxc3 {[%clk 00:28:13]} {[%emt
00:02:41]} 48. Rxc3 {[%clk 01:14:28]} {[%emt 00:01:27]} Re8 {[%clk 00:28:30]}
{[%emt 00:00:13]} 49. Rc6+ {[%clk 01:14:10]} {[%emt 00:00:48]} Kh5 {[%clk
00:27:03]} {[%emt 00:01:56]} 50. Kc3 {[%clk 01:12:38]} {[%emt 00:02:02]} Nxh4
{[%clk 00:26:37]} {[%emt 00:00:57]} 51. Bxh4 {[%clk 01:11:12]} {[%emt
00:01:56]} Kxh4 {[%clk 00:27:05]} {[%emt 00:00:02]} 52. Ra6 {[%clk 01:11:26]}
{[%emt 00:00:16]} Rc8+ {[%clk 00:27:04]} {[%emt 00:00:31]} 53. Kd3 {[%clk
01:11:37]} {[%emt 00:00:19]} Kg5 {[%clk 00:25:34]} {[%emt 00:02:00]} 54. Rxa5
{[%clk 01:11:41]} {[%emt 00:00:27]} Rb8 {[%clk 00:26:00]} {[%emt 00:00:04]} 55.
Ke4 {[%clk 01:10:52]} {[%emt 00:01:19]} b4 {[%clk 00:26:00]} {[%emt 00:00:30]}
56. Kd5 {[%clk 01:07:51]} {[%emt 00:03:30]} b3 {[%clk 00:25:58]} {[%emt
00:00:33]} 57. axb3 {[%clk 01:08:16]} {[%emt 00:00:06]} Rxb3 {[%clk 00:26:20]}
{[%emt 00:00:07]} 58. Ra1 {[%clk 01:07:32]} {[%emt 00:01:14]} Rb6 {[%clk
00:12:56]} {[%emt 00:13:56]} 59. Rg1 {[%clk 01:07:28]} {[%emt 00:00:32]} Kh6
{[%clk 00:13:22]} {[%emt 00:00:04]} 60. Re1 {[%clk 01:04:04]} {[%emt 00:03:53]}
Kg7 {[%clk 00:13:29]} {[%emt 00:00:25]} 61. e6 {[%clk 01:04:04]} {[%emt
00:00:30]} fxe6+ {[%clk 00:13:21]} {[%emt 00:00:38]} 62. Rxe6 {[%clk 01:04:32]}
{[%emt 00:00:02]} Rb4 {[%clk 00:12:45]} {[%emt 00:01:07]} 63. Kc5 {[%clk
01:04:44]} {[%emt 00:00:18]} Ra4 {[%clk 00:12:29]} {[%emt 00:00:46]} 64. d5
{[%clk 01:04:56]} {[%emt 00:00:19]} Kf7 {[%clk 00:12:55]} {[%emt 00:00:03]} 65.
Re2 {[%clk 01:05:15]} {[%emt 00:00:10]} Ra5+ {[%clk 00:13:12]} {[%emt
00:00:15]} 66. Kc6 {[%clk 01:05:37]} {[%emt 00:00:08]} Ra6+ {[%clk 00:13:15]}
{[%emt 00:00:27]} 67. Kb5 {[%clk 01:06:01]} {[%emt 00:00:05]} Ra1 {[%clk
00:13:16]} {[%emt 00:00:29]} 68. d6 {[%clk 01:05:40]} {[%emt 00:00:50]} Rd1
{[%clk 00:13:19]} {[%emt 00:00:29]} 69. Kc6 {[%clk 01:06:08]} {[%emt 00:00:02]}
Rc1+ {[%clk 00:13:34]} {[%emt 00:00:15]} 70. Kd7 {[%clk 01:06:36]} {[%emt
00:00:02]} Rc3 {[%clk 00:11:39]} {[%emt 00:02:25]} 71. Rf2 {[%clk 01:07:02]}
{[%emt 00:00:03]} Kg7 {[%clk 00:11:54]} {[%emt 00:00:15]} 72. Ke7 {[%clk
01:07:20]} {[%emt 00:00:10]} Re3+ {[%clk 00:12:13]} {[%emt 00:00:14]} 73. Kd8
{[%clk 01:07:49]} {[%emt 00:00:02]} Rc3 {[%clk 00:12:02]} {[%emt 00:00:41]} 74.
d7 {[%clk 01:08:16]} {[%emt 00:00:03]} Rc1 {[%clk 00:12:16]} {[%emt 00:00:16]}
75. Rf3 {[%clk 01:05:36]} {[%emt 00:03:10]} Rc2 {[%clk 00:12:42]} {[%emt
00:00:04]} 76. Rf4 {[%clk 01:04:56]} {[%emt 00:01:09]} Rc1 {[%clk 00:13:06]}
{[%emt 00:00:06]} 77. Ke7 {[%clk 01:04:09]} {[%emt 00:01:16]} Re1+ {[%clk
00:13:34]} {[%emt 00:00:02]} 78. Kd6 {[%clk 01:04:26]} {[%emt 00:00:12]} Rd1+
{[%clk 00:14:00]} {[%emt 00:00:06]} 79. Ke6 {[%clk 01:04:37]} {[%emt 00:00:17]}
1-0